Workbook

Sheet Sheet1
A1: Exhibit 1-URTA Comments
A2: Equity: 100 Percent | B2: No Iinterest Synchronization Applied | C2: With Interest Sychronization Applied
A4: Earnings before UUSF, Interest, and Taxes | B4: 2000000 | C4: 2000000
A5: Utah USF | B5: 601674.6411 | C5: 317038.3411
A6: Less: Hypothetical Interest Sync Expense (54.34% debt at 5.87%) | B6: 0 | C6: =$C$13*0.5434*0.0587 -> 478463.7
A7: Taxable Earnings | B7: =B4+B5-B6 -> 2601674.641 | C7: =C4+C5-C6 -> 1838574.641
A8: Composite State and Federal Tax Rate (2017) | B8: =0.05+(1-0.05)*0.34 -> 0.373 | C8: =0.05+(1-0.05)*0.34 -> 0.373
A9: State/Federal Income Tax | B9: =B7*B8 -> 970424.6411 | C9: =C7*C8 -> 685788.3411
A10: After Tax Net Utility Operating Income | B10: =B7-B9 -> 1631250 | C10: =C7-C9 -> 1152786.3
A11: UUSF Operating Income (does not include interest) | B11: =B4+B5-B9 -> 1631250 | C11: =C4+C5-C9 -> 1631250
A13: Rate Base | B13: 15000000 | C13: 15000000
A14: Rate of Return | B14: 0.10875 | C14: 0.10875
A15: Return on Rate Base | B15: =B13*B14 -> 1631250 | C15: =C13*C14 -> 1631250
A17: Actual Tax Liability | B17: =B9 -> 970424.6411 | C17: =B17 -> 970424.6411
A18: Hypothetical Tax Reduction from Interest Sync (cannot be realized on tax filings) | B18: =B17-B9 -> 0 | C18: =C17-C19 -> 284636.3
A19: UUSF adjusted income tax expense | B19: =B9 -> 970424.6411 | C19: =C9 -> 685788.3411
A20: Total Regulated Realized Rate of Return with Interest Sync | B20: =(B15-B18)/B13 -> 0.10875 | C20: =(C15-C18)/C13 -> 0.08977424667
B21: =B11-B15 -> 0 | C21: =C11-C15 -> 0 | D21: (check figure must be zero-use goal seek button below)
